fUST/lending_fUST_20260113
["ID","MTS","AMOUNT","RATE_DAILY","PERIOD"]
[401557123,1768301431942,-500.0,0.00016362,2]
[401557124,1768301431952,-500.0,0.00016362,2]
[401557125,1768301431962,-572.71456598,0.00016362,2]
[401557126,1768301431971,-500.0,0.00016362,2]
[401557127,1768301431980,-500.0,0.00016362,2]
[401557128,1768301431990,-500.0,0.00016362,2]
[401557129,1768301431999,-500.0,0.00016362,2]
[401557130,1768301432008,-500.0,0.00016362,2]
[401557131,1768301432017,-650.72754303,0.00016362,2]
[401557132,1768301432026,-500.0,0.00016362,2]
[401557133,1768301432035,-500.0,0.00016362,2]
[401557134,1768301432045,-500.0,0.00016362,2]
[401557135,1768301432054,-500.0,0.00016362,2]
[401557136,1768301432063,-500.0,0.00016362,2]
[401557137,1768301432072,-200.0,0.00016362,2]
[401557138,1768301432081,-50954.46368167,0.00016363,2]
[401557139,1768301432093,-1123.02642622,0.00016363,2]
[401557140,1768301432104,-505.84383334,0.00016363,2]
[401557141,1768301432114,-9854.02710172,0.00016363,2]
[401557162,1768301437854,-4905.58364292,0.00016363,2]
[401557164,1768301437865,-1646.68178699,0.00016363,2]
[401557169,1768301437907,-3610.35764539,0.00016363,2]
[401557172,1768301437918,-3204.50005689,0.00016363,2]
[401557174,1768301437930,-2231.78678788,0.00016363,2]
[401557414,1768301440110,-487.63586869,0.00016363,2]
[401557807,1768301444620,-915.53682693,0.00016363,2]
[401557808,1768301444631,-2086.3943386,0.00016363,2]
[401557895,1768301445787,-1002.17453697,0.00016363,2]
[401557899,1768301445798,-1466.7893271,0.00016363,2]
[401561056,1768301482552,-600.0,0.00016362,2]
[401561057,1768301482581,-500.0,0.00016362,2]
[401561058,1768301482610,-500.0,0.00016362,2]
[401561059,1768301482639,-230.99558995,0.00016362,2]
[401561060,1768301482669,-500.0,0.00016362,2]
[401561061,1768301482700,-300.0,0.00016362,2]
[401561062,1768301483098,-761.6788201,0.00016363,2]
[401561063,1768301483158,-10000.01,0.00016363,2]
[401561064,1768301483304,-10000.01,0.00016363,2]
[401561065,1768301483494,-10000.01,0.00016363,2]
[401561066,1768301483668,-10000.01,0.00016363,2]
[401561067,1768301483910,-10000.01,0.00016363,2]
[401561068,1768301484157,-10000.01,0.00016363,2]
[401561069,1768301484342,-10000.01,0.00016363,2]
[401561070,1768301484572,-10000.01,0.00016363,2]
[401561071,1768301498515,290.0,0.00030137,120]
[401561073,1768301510821,-178.947,0.00016035,2]
[401561074,1768301510848,-178.25346145,0.00016035,2]
[401561075,1768301511004,-500.0,0.00016362,2]
[401561076,1768301511054,-500.0,0.00016362,2]
[401561077,1768301511085,-159.15195496,0.00016362,2]
[401561078,1768301511193,-6967.30516718,0.00016363,2]
[401561079,1768301511244,-10000.01,0.00016363,2]
[401561080,1768301511455,-10000.01,0.00016363,2]
[401561081,1768301511687,-10000.01,0.00016363,2]
[401561082,1768301511922,-10000.01,0.00016363,2]
[401561083,1768301512123,-10000.01,0.00016363,2]
[401561084,1768301549641,-4256.2299451,0.00016286,2]
[401561085,1768301549669,-666.1801098,0.00016353,3]
[401561086,1768301549709,-155.1898902,0.00016353,3]
[401561087,1768301689168,500.0,0.00030136,120]
[401561088,1768301689720,500.0,0.00030136,120]
[401561089,1768301689981,510.09954506,0.00030136,120]
[401561090,1768301898707,220.53489268,0.0002628,120]
[401561091,1768302004989,172.5,5e-05,2]
[401561092,1768302005635,172.5,6.5e-05,2]
[401561093,1768302253398,-189.17764271,0.00010959,2]
[401561094,1768302537786,3161.63,0.00030136,120]
[401561095,1768302537932,3161.63,0.00030136,120]
[401561096,1768302538192,3161.63,0.00030136,120]
[401561097,1768302538484,3161.63,0.00030136,120]
[401561098,1768302538736,3161.63,0.00030136,120]
[401561099,1768302538978,3161.63,0.00030136,120]
[401561100,1768302539230,3161.63,0.00030136,120]
[401561101,1768302539503,3161.63,0.00030136,120]
[401561102,1768302544958,3161.63,0.00030136,120]
[401561103,1768302545223,3161.63,0.00030136,120]
[401561104,1768302545513,3161.63,0.00030136,120]
[401561105,1768302545751,3161.63,0.00030136,120]
[401561106,1768302545987,3161.63,0.00030136,120]
[401561107,1768302546338,3161.63,0.00030136,120]
[401561108,1768302546619,3161.63,0.00030136,120]
[401561109,1768302546868,3161.63,0.00030136,120]
[401561110,1768302547170,3161.63,0.00030136,120]
[401561111,1768302547445,3161.63,0.00030136,120]
[401561112,1768302548027,3161.63,0.00030136,120]
[401561113,1768302548320,3161.63,0.00030136,120]
[401561114,1768302548569,3161.63,0.00030136,120]
[401561115,1768302548810,3161.63,0.00030136,120]
[401561116,1768302549070,3161.63,0.00030136,120]
[401561117,1768302549337,3161.77971984,0.00030136,120]
[401561150,1768302631884,-160.47181694,0.00013328,2]
[401561152,1768302631894,-252.2406603,0.00013328,2]
[401561155,1768302631905,-356.7593397,0.00013328,2]
[401561157,1768302631915,-239.22919178,0.00014328,2]
[401561159,1768302631924,-2147.0,0.00015698,2]
[401561161,1768302631934,-629.0,0.00015698,2]
[401561163,1768302631942,-1200.0,0.00016059,2]
[401561164,1768302631952,-300.0,0.00016143,2]
[401561166,1768302631961,-417.0,0.00016144,2]
[401561169,1768302631972,-417.0,0.00016144,2]
[401561170,1768302631982,-806.132,0.00016144,2]
[401561171,1768302631990,-197.738,0.00016144,2]
[401561172,1768302631999,-477.9,0.00016153,3]
[401561173,1768302632008,-619.19050733,0.00016162,2]
[401561174,1768302632018,-369.43013708,0.00016162,2]
[401561175,1768302632028,-305.28420225,0.00016162,2]
[401561176,1768302632038,-500.0,0.00016162,2]
[401561177,1768302632048,-500.0,0.00016162,2]
[401561178,1768302632057,-500.0,0.00016162,2]
[401561179,1768302632066,-500.0,0.00016162,2]
[401561180,1768302632075,-500.0,0.00016162,2]
[401561181,1768302632084,-500.0,0.00016162,2]
[401561182,1768302632093,-500.0,0.00016162,2]
[401561183,1768302632102,-500.0,0.00016162,2]
[401561184,1768302632113,-500.0,0.00016162,2]
[401561185,1768302632123,-500.0,0.00016162,2]
[401561186,1768302632132,-206.07469458,0.00016162,2]
[401561187,1768302632141,-146813.59031588,0.00016163,2]
[401561212,1768302637968,-7864.67247499,0.00016163,2]
[401561219,1768302638022,-3657.07657638,0.00016163,2]
[401561221,1768302638034,-4840.4598424,0.00016163,2]
[401561223,1768302638045,-2694.03393832,0.00016163,2]
[401561866,1768302644351,-541.85411935,0.00016163,2]
[401562007,1768302645923,-562.22236783,0.00016163,2]
[401565574,1768302698392,-500.0,0.00013699,2]
[401565575,1768302698421,-1000.0,0.00014247,2]
[401565576,1768302698452,-1000.0,0.00015571,2]
[401565577,1768302698480,-300.0,0.00016119,2]
[401565578,1768302698638,-4100.01,0.0001612,2]
[401565579,1768302698665,-10000.01,0.0001612,2]
[401565580,1768302701255,-10000.01,0.0001612,2]
[401565581,1768302756339,4999.940008,0.00030136,120]
[401565582,1768302785156,2000.0,0.0003013,120]
[401565584,1768302920311,2000.0,0.0003013,120]
[401565594,1768303057500,2000.0,0.0003013,120]
[401565595,1768303192285,2000.0,0.0003013,120]
[401565596,1768303328357,1320.52768454,0.0003013,120]
[401565597,1768303474910,248.11157613,0.00030136,120]
[401565598,1768303517196,-638.0,0.00015118,2]
[401565599,1768303517219,-239.78498819,0.00015118,2]
[401565600,1768303517242,-553.05757,0.00015118,2]
[401565601,1768303517265,-164.654,0.00015511,2]
[401565602,1768303517287,-399.38896232,0.00015511,7]
[401565603,1768303517309,-2668.8583886,0.00015719,2]
[401565604,1768303517334,-238.95,0.00016053,3]
[401565605,1768303517359,-716.85,0.00016053,3]
[401565606,1768303517382,-573.47,0.00016053,3]
[401565607,1768303517407,-2000.0,0.00016053,2]
[401565608,1768303517432,-151.0,0.00016053,2]
[401565609,1768303517458,-2000.0,0.00016053,2]
[401565610,1768303517482,-461.67526834,0.00016053,2]
[401565611,1768303517505,-151.0,0.00016053,2]
[401565612,1768303517528,-168.3888056,0.00016053,2]
[401565613,1768303517551,-168.3888056,0.00016053,2]
[401565614,1768303517575,-250.0,0.00016053,2]
[401565615,1768303517600,-250.0,0.00016053,2]
[401565616,1768303517627,-174.61919141,0.00016053,2]
[401565617,1768303517775,-250.0,0.00016053,2]
[401565618,1768303517800,-250.0,0.00016053,2]
[401565619,1768303517825,-181.08010149,0.00016053,2]
[401565620,1768303517854,-187.78006525,0.00016053,2]
[401565621,1768303517879,-2230.315306,0.00016053,2]
[401565622,1768303517913,-151.0,0.00016053,2]
[401565623,1768303517950,-194.72792766,0.00016053,2]
[401565624,1768303517979,-201.93286099,0.00016053,2]
[401565625,1768303518009,-242.59349996,0.00016053,2]
[401565626,1768303518034,-151.0,0.00016053,2]
[401565627,1768303518064,-151.0,0.00016053,2]
[401565628,1768303518091,-209.40437684,0.00016053,2]
[401565629,1768303518116,-243.0,0.00016061,2]
[401565630,1768303518143,-300.0,0.00016061,2]
[401565631,1768303518170,-300.0,0.00016061,2]
[401565632,1768303518193,-15552.79603364,0.00016062,2]
[401565633,1768303518220,-178.947,0.00016062,2]
[401565634,1768303518245,-5000.0,0.00016062,2]
[401565635,1768303518270,-500.0,0.00016062,2]
[401565636,1768303518294,-258.60109595,0.00016062,2]
[401565637,1768303518319,-500.0,0.00016062,2]
[401565638,1768303518346,-625.09324021,0.00016062,2]
[401565639,1768303518372,-500.0,0.00016062,2]
[401565640,1768303518397,-500.0,0.00016062,2]
[401565641,1768303518422,-500.0,0.00016062,2]
[401565642,1768303518446,-236.86074016,0.00016062,2]
[401565643,1768303518468,-500.0,0.00016062,2]
[401565644,1768303518493,-500.0,0.00016062,2]
[401565645,1768303518517,-500.0,0.00016062,2]
[401565646,1768303518542,-337.90913252,0.00016062,2]
[401565647,1768303518567,-500.0,0.00016062,2]
[401565648,1768303518593,-500.0,0.00016062,2]
[401565649,1768303518617,-306.04060979,0.00016062,2]
[401565650,1768303518647,-1000000.0,0.00016063,2]
[401565651,1768303518670,-1041.66666667,0.00016087,2]
[401565652,1768303518809,217.15233878,0.00016053,2]
[401565653,1768303518854,500.0,0.00013699,2]
[401565654,1768303518884,1000.0,0.00014247,2]
[401565655,1768303518914,1500.0,0.00014795,2]
[401565656,1768303518947,1000.0,0.00015342,2]
[401565657,1768303518983,151.0,0.00016053,2]
[401565658,1768303519021,500.0,0.00016062,2]
[401565659,1768303519052,500.0,0.00016062,2]
[401565660,1768303519086,500.0,0.00016062,2]
[401565661,1768303519126,500.0,0.00016062,2]
[401565662,1768303519158,321.86537922,0.00016062,2]
[401565663,1768303519190,500.0,0.00016062,2]
[401565664,1768303519223,500.0,0.00016062,2]
[401565665,1768303519279,505.26776516,0.00016062,2]
[401565666,1768303519316,500.0,0.00016062,2]
[401565667,1768303519346,500.0,0.00016062,2]
[401565668,1768303519377,225.18697532,0.00016053,2]
[401565669,1768303519411,500.0,0.00016062,2]
[401565670,1768303519443,500.0,0.00016062,2]
[401565671,1768303519477,500.0,0.00016062,2]
[401565672,1768303519510,338.44187493,0.00016062,2]
[401565673,1768303519546,1000.0,0.00013821,2]
[401565674,1768303519579,500.0,0.00016062,2]
[401565675,1768303519613,500.0,0.00016062,2]
[401565676,1768303519651,500.0,0.00016062,2]
[401565677,1768303519688,500.0,0.00016062,2]
[401565678,1768303519834,500.0,0.00016062,2]
[401565679,1768303519867,1500.0,0.00014368,2]
[401565680,1768303519900,500.0,0.00016062,2]
[401565681,1768303519934,500.0,0.00016062,2]
[401565682,1768303519968,500.0,0.00016062,2]
[401565683,1768303519999,2000.0,0.00014916,2]
[401565684,1768303520033,500.0,0.00016062,2]
[401565685,1768303520064,500.0,0.00013273,2]
[401565686,1768303520097,500.0,0.00016062,2]
[401565687,1768303520135,481.41624171,0.00016062,2]
[401565688,1768303520169,500.0,0.00016062,2]
[401565689,1768303520211,500.0,0.00016062,2]
[401565690,1768303520250,233.51889341,0.00016053,2]
[401565691,1768303520290,1355.15159414,0.00015464,2]
[401565692,1768303520361,242.15909246,0.00016053,2]
[401565693,1768303520444,250.0,0.00016053,2]
[401565694,1768303520486,251.11897888,0.00016053,2]
[401565695,1768303520522,250.0,0.00016053,2]
[401565696,1768303520568,500.0,0.00030136,120]
[401565697,1768303520690,260.4103811,0.00016053,2]
[401565698,1768303520744,500.0,0.00030136,120]
[401565699,1768303520984,500.0,0.00030136,120]
[401565700,1768303521233,500.0,0.00030136,120]
[401565701,1768303521333,270.0455652,0.00016053,2]
[401565702,1768303521479,500.0,0.00030136,120]
[401565703,1768303521720,500.0,0.00030136,120]
[401565704,1768303521968,280.03725112,0.00016053,2]
[401565705,1768303522015,500.0,0.00030136,120]
[401565706,1768303522254,500.0,0.00030136,120]
[401565707,1768303522493,500.0,0.00030136,120]
[401565708,1768303522601,290.39862941,0.00016053,2]
[401565709,1768303522789,286.99714601,0.00030136,120]
[401565710,1768303523207,301.1433787,0.00016053,2]
[401565711,1768303524701,250.0,0.00016053,2]
[401565716,1768303596548,1400.0,0.0003013,120]
[401565749,1768303763993,232.74,0.00030136,120]
[401565835,1768303838419,-500.0,0.00013273,2]
[401565837,1768303838429,-246.43126622,0.00013486,2]
[401565839,1768303838439,-500.0,0.00013699,2]
[401565841,1768303838448,-1000.0,0.00013821,2]
[401565843,1768303838457,-1006.10030997,0.00014247,2]
[401565845,1768303838466,-1500.0,0.00014368,2]
[401565847,1768303838476,-2000.0,0.00014916,2]
[401565849,1768303838486,-1041.66666667,0.0001548,2]
[401565851,1768303838495,-290.78889414,0.00015486,2]
[401565853,1768303838504,-167.0299036,0.000159,2]
[401565855,1768303838513,-202.75083062,0.00015935,2]
[401565857,1768303838526,-300.0,0.00015949,2]
[401565859,1768303838536,-336933.86179069,0.0001595,2]
[401565861,1768303838546,-477.9,0.00015952,3]
[401565864,1768303838556,-42428.67179464,0.00015961,2]
[401565865,1768303838566,-500.0,0.00015961,2]
[401565868,1768303838576,-226.93862508,0.00015961,2]
[401565869,1768303838586,-500.0,0.00015961,2]
[401565871,1768303838595,-537.56526815,0.00015961,2]
[401565873,1768303838604,-500.0,0.00015961,2]
[401565875,1768303838613,-500.0,0.00015961,2]
[401565877,1768303838623,-500.0,0.00015961,2]
[401565879,1768303838632,-500.0,0.00015961,2]
[401565881,1768303838641,-500.0,0.00015961,2]
[401565883,1768303838650,-500.0,0.00015961,2]
[401565885,1768303838660,-192.13467302,0.00015961,2]
[401565887,1768303838669,-211.32838086,0.00015961,2]
[401565889,1768303838679,-548.14162417,0.00015961,2]
[401565891,1768303838688,-169.06559988,0.00015961,2]
[401565893,1768303838697,-500.0,0.00015961,2]
[401565895,1768303838706,-500.0,0.00015961,2]
[401565897,1768303838719,-500.0,0.00015961,2]
[401565899,1768303838728,-500.0,0.00015961,2]
[401565901,1768303838737,-426.49354166,0.00015961,2]
[401565903,1768303838747,-500.0,0.00015961,2]
[401565905,1768303838758,-500.0,0.00015961,2]
[401565907,1768303838768,-500.0,0.00015961,2]
[401565909,1768303838777,-500.0,0.00015961,2]
[401565911,1768303838788,-500.0,0.00015961,2]
[401565913,1768303838797,-314.7248574,0.00015961,2]
[401565916,1768303838807,-500.0,0.00015961,2]
[401565917,1768303838817,-500.0,0.00015961,2]
[401565919,1768303838826,-1000000.0,0.00015962,2]
[401565921,1768303838836,-461.67526834,0.00016053,2]
[401565923,1768303838846,-250.0,0.00016053,2]
[401565925,1768303838856,-168.3888056,0.00016053,2]
[401565927,1768303838871,-174.61919141,0.00016053,2]
[401565929,1768303838881,-181.08010149,0.00016053,2]
[401565931,1768303838890,-187.78006525,0.00016053,2]
[401565932,1768303838899,-194.72792766,0.00016053,2]
[401565934,1768303838910,-201.93286099,0.00016053,2]
[401565936,1768303838919,-209.40437684,0.00016053,2]
[401565938,1768303838928,-151.0,0.00016053,2]
[401565940,1768303838936,-217.15233878,0.00016053,2]
[401565942,1768303838945,-225.18697532,0.00016053,2]
[401565944,1768303838954,-233.51889341,0.00016053,2]
[401565946,1768303838963,-242.15909246,0.00016053,2]
[401565948,1768303838973,-251.11897888,0.00016053,2]
[401565950,1768303838982,-260.4103811,0.00016053,2]
[401565952,1768303838991,-174.61919142,0.00016053,2]
[401565953,1768303838999,-270.0455652,0.00016053,2]
[401565955,1768303839009,-280.03725112,0.00016053,2]
[401565957,1768303839018,-290.39862941,0.00016053,2]
[401565959,1768303839027,-301.1433787,0.00016053,2]
[401565961,1768303839036,-2230.315306,0.00016053,2]
[401565963,1768303839046,-2668.85838861,0.00016288,2]
[401565965,1768303839055,-2793.0,0.00016362,5]
[401565967,1768303839064,-500.0,0.00016438,2]
[401565969,1768303839074,-500.0,0.00016438,2]
[401565971,1768303839083,-542.10246644,0.00016438,2]
[401565973,1768303839091,-500.0,0.00016438,2]
[401565975,1768303839100,-500.0,0.00016438,2]
[401565977,1768303839109,-200.0,0.00016438,2]
[401565979,1768303839119,-161.0,0.000165,2]
[401565981,1768303839128,-478.75725327,0.00016601,2]
[401565983,1768303839137,-2312.83697232,0.00016601,2]
[401565985,1768303839146,-151.0,0.00016664,2]
[401565987,1768303839155,-151.0,0.00016664,2]
[401565989,1768303839164,-1367.0,0.00016664,2]
[401565991,1768303839174,-629.0,0.00016664,2]
[401565993,1768303839183,-2147.0,0.00016664,2]
[401565995,1768303839191,-715.0,0.00016664,2]
[401565997,1768303839202,-197.738,0.00016664,2]
[401565999,1768303839210,-417.0,0.00016664,2]
[401566001,1768303839220,-417.0,0.00016664,2]
[401566003,1768303839229,-778.0,0.000169,2]
[401566005,1768303839239,-150.14,0.00016927,2]
[401566007,1768303839248,-150.17,0.00016927,2]
[401566009,1768303839258,-150.082,0.00016927,2]
[401566011,1768303839267,-150.176,0.00016927,2]
[401566013,1768303839277,-4084.135,0.00017,2]
[401566015,1768303839286,-1183.42470219,0.00017,2]
[401566017,1768303839295,-183207.55504816,0.000171,2]
[401566137,1768303840393,-1211.99824618,0.000171,2]
[401566635,1768303845509,-297893.13972362,0.000171,2]
[401566638,1768303845534,-373.60028679,0.000171,2]
[401571306,1768304119686,1600.0,0.0003013,120]
[401571307,1768304405025,163.08,5e-05,2]
[401571321,1768305032297,-717.47312488,0.00014853,2]
[401571322,1768305032351,-828.71954582,0.00014853,2]
[401571323,1768305032366,-262.85780663,0.00015198,5]
[401571324,1768305032384,-250.38543764,0.00015198,2]
[401571325,1768305032403,-132.31856069,0.00015544,2]
[401571326,1768305032428,-46.56343931,0.00015544,2]
[401571327,1768305032439,-1113.43753376,0.00015761,2]
[401571353,1768305038463,-4237.11762725,0.00015761,2]
[401571356,1768305038475,-311.65185859,0.00015761,2]
[401571358,1768305038489,-2942.1956689,0.00015761,2]
[401571361,1768305038504,-5672.08212785,0.00015761,2]
[401571365,1768305038532,-6813.08556657,0.00015761,2]
[401571552,1768305040605,-447.0,0.00015761,2]
[401571554,1768305040618,-78911.60486466,0.00015761,2]
[401571560,1768305040662,-2881.50761692,0.00015761,2]
[401571562,1768305040675,-4284.51545544,0.00015761,2]
[401571563,1768305040688,-4731.63076753,0.00015761,2]
[401571566,1768305040700,-1000.0,0.00015761,2]
[401571568,1768305040716,-13872.11322515,0.00015761,2]
[401572058,1768305046374,-695001.58726406,0.00015761,2]
[401572069,1768305046479,-911.75,0.00015761,2]
[401572072,1768305046492,-543.13181386,0.00015761,2]
[401572077,1768305046530,-5000.0,0.00015761,2]
[401575886,1768305086692,-500.0,0.00013273,2]
[401575890,1768305086720,-500.0,0.00013699,2]
[401575894,1768305086747,-154.24911887,0.00013699,2]
[401575898,1768305086773,-1000.0,0.00013821,2]
[401575902,1768305086799,-1000.0,0.00014247,2]
[401575906,1768305086826,-1500.0,0.00014368,2]
[401575925,1768305086995,-537.26264339,0.00014795,2]
[401575930,1768305087029,-962.73735661,0.00014795,2]
[401575933,1768305087058,-2000.0,0.00014916,2]
[401575937,1768305087084,-154.24911887,0.00015154,5]
[401575941,1768305087112,-1000.0,0.00015342,2]
[401575945,1768305087142,-410.8854549,0.00015464,2]
[401575960,1768305087286,-944.26613924,0.00015464,2]
[401575964,1768305087315,-300.0,0.0001576,2]
[401576104,1768305093745,263.4,0.0001611,120]
[401576105,1768305096332,500.0,0.00030136,120]
[401576106,1768305096573,500.0,0.00030136,120]
[401576107,1768305096831,500.0,0.00030136,120]
[401576108,1768305097083,500.0,0.00030136,120]
[401576109,1768305097334,500.0,0.00030136,120]
[401576110,1768305097565,500.0,0.00030136,120]
[401576111,1768305097792,500.0,0.00030136,120]
[401576112,1768305098032,500.0,0.00030136,120]
[401576113,1768305098389,500.0,0.00030136,120]
[401576114,1768305098560,500.0,0.00030136,120]
[401576115,1768305098793,500.0,0.00030136,120]
[401576116,1768305099049,500.0,0.00030136,120]
[401576117,1768305099303,500.0,0.00030136,120]
[401576118,1768305099531,500.0,0.00030136,120]
[401576119,1768305099791,500.0,0.00030136,120]
[401576120,1768305100027,500.0,0.00030136,120]
[401576121,1768305100282,500.0,0.00030136,120]
[401576122,1768305100510,609.0222762,0.00030136,120]
[401576123,1768305120771,158.85703756,0.0001576,2]
[401576124,1768305120800,500.0,0.0001576,2]
[401576125,1768305121681,500.0,0.0001576,2]
[401576126,1768305122391,300.0,0.0001576,2]
[401576127,1768305122520,500.0,0.0001576,2]
[401576128,1768305122995,276.2956877,0.0001576,2]
[401576129,1768305130749,500.0,0.0001576,2]
[401576130,1768305130779,500.0,0.0001576,2]
[401576131,1768305130809,500.0,0.0001576,2]
[401576132,1768305130838,500.0,0.0001576,2]
[401576133,1768305130869,500.0,0.0001576,2]
[401576134,1768305130900,500.0,0.0001576,2]
[401576135,1768305130930,500.0,0.0001576,2]
[401576136,1768305130959,523.50147449,0.0001576,2]
[401576137,1768305130989,500.0,0.0001576,2]
[401576138,1768305131017,500.0,0.0001576,2]
[401576139,1768305131051,252.82352177,0.0001576,2]
[401576140,1768305131073,247.17647823,0.0001576,2]
[401576141,1768305131105,500.0,0.0001576,2]
[401576142,1768305131144,500.0,0.0001576,2]
[401576143,1768305131175,500.0,0.0001576,2]
[401576144,1768305131207,500.0,0.0001576,2]
[401576145,1768305131238,500.0,0.0001576,2]
[401576146,1768305131272,500.0,0.0001576,2]
[401576147,1768305131302,203.16091166,0.0001576,2]
[401576148,1768305131332,500.0,0.0001576,2]
[401576149,1768305131362,500.0,0.0001576,2]
[401576150,1768305131393,454.59768744,0.0001576,2]
[401576151,1768305131423,500.0,0.0001576,2]
[401576152,1768305131454,500.0,0.0001576,2]
[401576153,1768305131482,500.0,0.0001576,2]
[401576154,1768305131511,500.0,0.0001576,2]
[401576155,1768305131659,500.0,0.0001576,2]
[401576156,1768305131692,171.64754863,0.0001576,2]
[401576157,1768305131721,500.0,0.0001576,2]
[401576158,1768305131750,500.0,0.0001576,2]
[401576159,1768305131780,500.0,0.0001576,2]
[401576160,1768305163090,800.0,0.0003013,120]
[401576161,1768305182951,300.0,0.0001576,2]
[401576162,1768305239142,623.42737404,0.00014972,2]
[401576163,1768305239170,410.79813796,0.00014972,2]
[401576164,1768305263066,467.01787907,0.0001576,2]
[401576165,1768305268698,630.18306096,0.0001576,2]
[401576166,1768305277475,2816.67481333,0.00015676,2]
[401576167,1768305278010,383.84418749,0.0001576,2]
[401576168,1768305302168,300.0,0.0001576,2]
[401576169,1768305336297,999.0,0.00015431,2]
[401576170,1768305362698,300.0,0.0001576,2]
[401576171,1768305422759,300.0,0.0001576,2]
[401576172,1768305482489,300.0,0.0001576,2]
[401576173,1768305488834,886.93,0.00015751,3]
[401576174,1768305492090,158.0,0.00030137,120]
[401576175,1768305494720,1523.3088737,0.00015486,2]
[401576176,1768305499722,158.0,0.00030137,120]
[401576177,1768305508276,158.0,0.00030137,120]
[401576178,1768305517921,158.0,0.00030137,120]
[401576179,1768305530827,158.0,0.00030137,120]
[401576180,1768305543415,300.0,0.0001576,2]
[401576181,1768305543832,158.0,0.00030137,120]
[401576182,1768305547734,382.25304749,0.00015666,2]
[401576183,1768305547757,2082.3374142,0.00015666,2]
[401576184,1768305602684,300.0,0.0001576,2]
[401576185,1768305636866,1041.66666667,0.00015759,2]
[401576186,1768305652316,276.528785,0.00015425,2]
[401576187,1768305662781,300.0,0.0001576,2]
[401576188,1768305722607,300.0,0.0001576,2]
[401576189,1768305736154,2968.98524404,0.00015388,2]
[401576190,1768305744342,158.0,0.00030137,120]
[401576191,1768305751825,158.0,0.00030137,120]
[401576192,1768305761998,158.0,0.00030137,120]
[401576193,1768305781754,156.27742738,0.00030137,120]
[401576194,1768305782433,300.0,0.0001576,2]
[401576195,1768305817953,2156.51665397,0.00015661,2]
[401576196,1768305842425,273.97523612,0.0001576,2]
[401576197,1768305842449,26.02476388,0.0001576,2]
[401576198,1768305908017,500.0,0.00030136,120]
[401576199,1768305908254,500.0,0.00030136,120]
[401576200,1768305908562,509.27090641,0.00030136,120]
[401576201,1768306027697,9973.98523612,0.0001576,2]
[401576202,1768306027719,10000.01,0.0001576,2]
[401576203,1768306027740,10000.01,0.0001576,2]
[401576204,1768306027761,10000.01,0.0001576,2]
[401576205,1768306027782,10000.01,0.0001576,2]
[401576206,1768306027804,10000.01,0.0001576,2]
[401576207,1768306027826,10000.01,0.0001576,2]
[401576208,1768306027848,10000.01,0.0001576,2]
[401576209,1768306027870,10000.01,0.0001576,2]
[401576210,1768306167708,155.0,8.246e-05,2]
[401576213,1768306232578,-300.0,0.00015659,2]
[401576214,1768306232588,-500.0,0.0001566,2]
[401576215,1768306232597,-500.0,0.0001566,2]
[401576216,1768306232606,-423.40698139,0.0001566,2]